bitfinex/quotes_SOLUSD_20250123
["timestamp","ask_amount","ask_price","bid_price","bid_amount"]
[1737665691596,9.9492,251.28,250.97,15.7258]
[1737665691799,3.9794,251.29,250.97,15.7258]
[1737665692988,22.6726185,251.31,251.05,1.0]
[1737665693197,22.6726185,251.31,251.06,13.2657]
[1737665693500,26.6518185,251.31,251.06,13.2657]
[1737665694088,0.2393,251.29,251.07,1.0]
[1737665694295,0.2393,251.29,251.1,1.0]
[1737665694595,13.2657,251.52,251.21,1.0]
[1737665694800,13.2657,251.52,251.22,16.7678]
[1737665694975,3.9755,251.54,251.22,16.7678]
[1737665695297,37.63787894,251.54,251.22,16.7678]
[1737665695497,3.84617894,251.53,251.22,16.7678]
[1737665695792,7.76720964,251.53,251.22,16.7678]
[1737665695967,30.0,251.5,251.22,16.7678]
[1737665696167,33.7997,251.48,251.22,16.7678]
[1737665696402,6.82577846,251.47,251.22,16.7678]
[1737665697271,23.776884,251.44,251.22,13.2657]
[1737665697599,23.776884,251.42,251.22,13.2657]
[1737665697898,7.76720964,251.41,251.22,13.2657]
[1737665698118,23.776884,251.38,251.11,3.3819]
[1737665698411,30.0,251.27,250.96,0.063]
[1737665698707,30.03581494,251.26,250.96,0.063]
[1737665699294,30.0,251.22,250.96,0.063]
[1737665699608,23.776884,251.18,250.96,0.063]
[1737665699822,30.0,251.15,250.68,3.3161]
[1737665700112,30.0,251.11,250.68,3.3161]
[1737665700290,3.84617894,251.1,250.68,17.2779]
[1737665700496,3.84617894,251.1,250.75,1.0]
[1737665700708,28.19710319,251.16,250.84,1.0]
[1737665700914,103.72523576,251.33,250.91,1.0]
[1737665701126,3.84617894,251.32,250.9,12.1755]
[1737665701486,3.84617894,251.32,250.95,1.0]
[1737665701682,3.84617894,251.32,250.91,0.72877582]
[1737665702013,3.84617894,251.32,250.95,3.5175]
[1737665702014,3.9210307,251.31,250.95,3.5175]
[1737665702306,23.776884,251.22,250.96,0.063]
[1737665702514,30.0,251.17,250.96,0.063]
[1737665702695,23.776884,251.12,250.81,3.5175]
[1737665702900,3.84617894,251.11,250.81,3.5175]
[1737665703113,30.0,251.03,250.81,3.5175]
[1737665703300,23.776884,250.99,250.81,3.5175]
[1737665703619,30.0,250.97,250.68,3.4046]
[1737665703786,23.776884,250.93,250.68,3.4046]
[1737665703987,3.9210307,250.97,250.68,4.4046]
[1737665704215,3.9824,251.1,250.69,3.9889]
[1737665704402,39.9573,251.08,250.68,3.4046]
[1737665704607,23.776884,251.0,250.68,3.4046]
[1737665704818,3.84617894,250.99,250.68,3.4046]
[1737665705325,23.776884,251.01,250.68,3.4046]
[1737665705630,23.776884,250.95,250.68,3.4046]
[1737665705814,30.0,250.96,250.68,3.4046]
[1737665705994,8.76720964,251.0,250.68,3.4046]
[1737665705995,63.8658,250.99,250.68,3.4046]
[1737665706317,3.9210307,250.98,250.68,3.4046]
[1737665707016,13.9447,250.99,250.68,3.4046]
[1737665708001,9.9605,250.99,250.68,3.4046]
[1737665708309,23.776884,250.96,250.68,3.4046]
[1737665708612,30.0,250.88,250.63,13.2542]
[1737665708791,30.0,250.91,250.63,13.2542]
[1737665709207,33.9210307,250.91,250.63,13.2542]
[1737665709515,30.0,250.87,250.63,13.2542]
[1737665709711,3.9210307,250.9,250.63,13.2542]
[1737665709913,3.84617894,250.91,250.63,13.2542]
[1737665710112,37.726584,250.9,250.63,13.2542]
[1737665710315,13.9497,250.9,250.63,13.2542]
[1737665710822,23.776884,250.88,250.63,13.2542]
[1737665711194,23.776884,250.85,250.63,13.2542]
[1737665711620,33.84587285,250.89,250.63,13.2542]
[1737665711816,23.776884,250.88,250.63,13.2542]
[1737665712001,13.9508,250.88,250.63,13.2542]
[1737665712531,33.8806,250.88,250.63,13.2542]
[1737665712728,23.776884,250.87,250.63,13.2542]
[1737665713024,3.9859,250.88,250.63,13.2542]
[1737665713522,27.62306294,250.87,250.63,13.2542]
[1737665713725,23.776884,250.85,250.63,13.2542]
[1737665713909,3.84617894,250.84,250.63,13.2542]
[1737665714105,13.9536,250.83,250.63,13.2542]
[1737665714328,23.776884,250.82,250.63,13.2542]
[1737665714508,27.62306294,250.82,250.63,13.2542]
[1737665715424,3.9867,250.83,250.63,13.2542]
[1737665715602,23.776884,250.82,250.63,13.2542]
[1737665715999,23.776884,250.87,250.63,13.2542]
[1737665716319,23.776884,250.83,250.63,13.2542]
[1737665716535,27.62306294,250.83,250.63,13.2542]
[1737665716733,23.776884,250.8,250.63,13.2542]
[1737665716904,23.776884,250.77,250.63,13.2542]
[1737665717099,3.84617894,250.8,250.63,13.2542]
[1737665717524,0.2398,250.82,250.63,13.2542]
[1737665717902,3.84617894,250.81,250.63,13.2542]
[1737665718113,23.776884,250.77,250.55,3.5431]
[1737665718416,3.84617894,250.76,250.55,3.5431]
[1737665719011,3.9875,250.78,250.55,3.5431]
[1737665719232,0.2398,250.82,250.55,4.5431]
[1737665719411,0.2398,250.82,250.61,1.0]
[1737665719612,30.0,250.98,250.62,13.0248]
[1737665719809,23.776884,250.91,250.62,13.0248]
[1737665720013,3.09907563,250.9,250.62,13.0248]
[1737665720237,23.776884,250.88,250.62,13.0248]
[1737665720437,23.776884,250.86,250.62,13.0248]
[1737665720609,23.776884,250.83,250.62,13.0248]
[1737665720817,23.776884,250.8,250.62,13.0248]
[1737665721015,23.776884,250.77,250.62,13.0248]
[1737665721224,3.84617894,250.79,250.62,13.0248]
[1737665721225,3.84617894,250.76,250.62,13.0248]
[1737665721641,23.776884,250.75,250.62,13.0248]
[1737665722011,27.62306294,250.75,250.62,13.0248]
[1737665722219,23.776884,250.73,250.62,13.0248]
[1737665722634,27.62306294,250.73,250.55,3.0431]
[1737665722840,23.776884,250.71,250.55,3.0431]
[1737665724041,27.62306294,250.71,250.55,3.0431]
[1737665724243,13.9608,250.7,250.55,3.0431]
[1737665724611,23.776884,250.69,250.55,3.0431]
[1737665725037,3.9881,250.74,250.55,3.0431]
[1737665725340,3.9859,250.88,250.55,3.0431]
[1737665725546,9.9663,250.85,250.55,3.0431]
[1737665726424,9.9663,250.85,250.56,1.0]
[1737665726753,9.9663,250.85,250.55,3.0431]
[1737665726754,3.9861,250.87,250.61,12.1334]
[1737665727427,13.9514,250.87,250.61,12.1334]
[1737665727638,3.985,250.94,250.61,13.1334]
[1737665727822,7.83117894,250.94,250.61,13.1334]
[1737665728030,3.84617894,250.93,250.61,12.1334]
[1737665728232,37.7962307,250.92,250.61,12.1334]
[1737665728539,27.62306294,250.91,250.61,12.1334]
[1737665728859,61.54409364,250.91,250.61,12.1334]
[1737665729054,3.9210307,250.9,250.61,12.1334]
[1737665729365,3.84617894,250.89,250.61,12.1334]
[1737665729656,3.84617894,250.89,250.63,1.0]
[1737665729956,3.9853,250.92,250.67,1.0]
[1737665730146,3.9843,250.98,250.7,1.0]
[1737665730657,3.9843,250.98,250.69,12.851]
[1737665730658,13.9452,250.98,250.69,12.851]
[1737665730840,33.84617894,250.97,250.69,12.851]
[1737665731044,30.0,250.94,250.69,12.851]
[1737665731361,2.1050341,250.96,250.69,12.851]
[1737665731362,30.0,250.88,250.69,12.851]
[1737665731534,7.76720964,250.87,250.69,12.851]
[1737665731957,3.84617894,250.87,250.69,12.851]
[1737665732128,33.8752,250.92,250.69,12.851]
[1737665732335,27.62306294,250.91,250.69,12.851]
[1737665732657,7.76720964,250.91,250.69,12.851]
[1737665732958,23.776884,250.85,250.69,12.851]
[1737665733152,23.776884,250.83,250.69,12.851]
[1737665733356,27.6979147,250.83,250.69,12.851]
[1737665733559,23.776884,250.81,250.69,12.851]
[1737665733736,23.776884,250.81,250.48,3.3758]
[1737665733737,3.9210307,250.81,250.48,3.3758]
[1737665733932,30.0,250.84,250.48,3.3758]
[1737665733933,3.9210307,250.8,250.48,3.3758]
[1737665734138,23.776884,250.77,250.48,3.3758]
[1737665734339,3.9210307,250.76,250.48,3.3758]
[1737665734640,23.776884,250.75,250.48,3.3758]
[1737665734851,23.776884,250.73,250.48,3.3758]
[1737665735164,23.776884,250.75,250.48,3.3758]
[1737665735165,2.62865937,250.72,250.48,3.3758]
[1737665735532,23.776884,250.71,250.48,3.3758]
[1737665735843,23.776884,250.69,250.48,3.3758]
[1737665736043,23.776884,250.67,250.48,3.3758]
[1737665736354,13.963,250.66,250.48,3.3758]
[1737665736730,3.9894,250.66,250.49,12.6088]
[1737665736957,30.0,250.64,250.47,0.312465]
[1737665737262,26.40554337,250.63,250.47,0.312465]
[1737665737631,36.54969007,250.63,250.47,6.5e-05]
[1737665737849,6.54969007,250.63,250.47,6.5e-05]
[1737665738063,2.62865937,250.63,250.47,6.5e-05]
[1737665738261,13.9653,250.62,250.47,6.5e-05]
[1737665739054,23.776884,250.61,250.47,6.5e-05]
[1737665739640,13.9653,250.62,250.47,6.5e-05]
[1737665739850,23.776884,250.61,250.47,6.5e-05]
[1737665740047,23.776884,250.59,250.47,6.5e-05]
[1737665740338,23.776884,250.61,250.47,6.5e-05]
[1737665740339,30.0,250.61,250.47,6.5e-05]
[1737665740547,23.776884,250.57,250.47,6.5e-05]
[1737665740753,25.96960757,250.57,250.47,6.5e-05]
[1737665740976,27.62306294,250.57,250.47,6.5e-05]
[1737665741274,0.2004025,250.56,250.47,6.5e-05]
[1737665741466,1.62229382,250.56,250.39,12.6088]
[1737665742260,3.9912,250.55,250.39,12.6088]
[1737665742861,23.776884,250.54,250.39,12.6088]
[1737665743250,13.9692,250.55,250.39,12.6088]
[1737665743779,3.9912,250.55,250.39,12.6088]
[1737665743945,5.54332452,250.64,250.39,12.6088]
[1737665744147,1.62229382,250.64,250.39,12.6088]
[1737665744344,2.22388512,250.69,250.39,12.6088]
[1737665744571,2.22388512,250.69,250.44,1.0]
[1737665744756,12.6088,250.68,250.48,1.0]
[1737665745076,12.6088,250.68,250.39,12.6088]
[1737665745077,3.9872,250.8,250.6,11.4884]
[1737665745277,3.9853,250.92,250.63,1.0]
[1737665745578,0.03,250.96,250.73,1.0]
[1737665745751,0.03,250.96,250.78,1.0]
[1737665745952,3.9834,251.04,250.76,23.776884]
[1737665746274,3.84617894,251.1,250.83,1.0]
[1737665746577,3.84617894,251.1,250.7,11.4884]
[1737665746578,15.471,251.09,250.82,1.0]
[1737665746751,15.471,251.09,250.82,19.60146112]
[1737665746956,11.4884,251.09,250.84,19.48383541]
[1737665747158,3.9825,251.1,250.83,19.49766671]
[1737665747352,3.9825,251.1,250.86,19.51488826]
[1737665747658,3.9825,251.09,250.85,18.42482181]
[1737665747863,30.0,251.27,250.88,19.34028458]
[1737665748106,12.8445,251.36,250.96,1.0]
[1737665748107,22.66930629,251.34,250.96,1.0]
[1737665748301,3.32608369,251.34,250.99,1.0]
[1737665748609,3.32608369,251.34,250.91,37.097784]
[1737665748610,3.32608369,251.34,251.0,1.0]
[1737665748909,33.8199,251.33,250.97,7.8963522]
[1737665749079,30.0,251.3,250.97,7.8963522]
[1737665749273,3.56839935,251.3,250.97,7.8963522]
[1737665749470,30.0,251.26,250.97,7.8963522]
[1737665749782,30.0,251.22,250.97,7.8963522]
[1737665749978,23.776884,251.18,250.97,7.8963522]
[1737665750179,30.0,251.16,250.98,7.8963522]
[1737665750394,30.0,251.11,250.98,5.22e-05]
[1737665750584,30.0,251.14,250.85,10.52846961]
[1737665750793,13.9358,251.15,251.06,4.185e-05]
[1737665750978,30.0,251.13,250.99,35.91914186]
[1737665751183,33.8442,251.15,250.99,35.91914186]
[1737665751381,30.0,251.1,250.85,10.52846961]
[1737665751585,30.0,251.04,250.85,10.52846961]
[1737665751819,30.0,251.0,250.85,6.961e-05]
[1737665751995,30.0,251.0,250.65,12.7826]
[1737665752179,30.0,250.98,250.65,12.7826]
[1737665752501,23.776884,250.93,250.65,12.7826]
[1737665752680,23.776884,250.9,250.65,12.7826]
[1737665753279,30.0,250.87,250.59,0.063]
[1737665753497,23.776884,250.86,250.59,0.063]
[1737665753706,23.776884,250.83,250.59,0.063]
[1737665754085,30.0,250.87,250.59,0.063]
[1737665754287,23.776884,250.8,250.59,0.063]
[1737665754500,30.0,250.76,250.59,0.063]
[1737665754679,23.776884,250.75,250.59,0.063]
[1737665754880,23.776884,250.72,250.41,12.6761]
[1737665755415,30.0,250.79,250.41,12.6761]
[1737665755878,30.0,250.72,250.41,12.6761]
[1737665756083,23.776884,250.71,250.41,12.6761]
[1737665756397,23.776884,250.69,250.41,12.6761]
[1737665756576,26.9245,250.7,250.41,12.6761]
[1737665756781,23.776884,250.69,250.41,12.6761]
[1737665757083,26.9245,250.7,250.41,12.6761]
[1737665757410,23.776884,250.67,250.41,12.6761]
[1737665757604,23.776884,250.64,250.3,12.0544]
[1737665757907,11.84,250.63,250.3,12.0544]
[1737665758096,56.9245,250.7,250.3,12.0544]
[1737665758292,23.776884,250.64,250.3,12.0544]
[1737665758911,60.5205,250.65,250.3,12.0544]
[1737665759082,23.776884,250.64,250.3,12.0544]
[1737665759413,0.2448,250.64,250.3,12.0544]
[1737665759711,0.2448,250.64,250.31,23.776884]
[1737665760012,0.2448,250.64,250.41,0.063]
[1737665760313,23.776884,250.62,250.41,0.063]
[1737665760613,30.5229,250.63,250.41,0.063]
[1737665760818,30.0,250.59,250.41,0.063]
[1737665760997,23.776884,250.52,250.3,12.0544]
[1737665761594,30.0,250.47,250.15,12.6863]
[1737665761795,23.776884,250.46,250.15,12.6863]
[1737665761997,30.0,250.43,250.15,12.6863]
[1737665762315,30.0,250.37,250.01,12.9504]
[1737665762505,27.1575,250.39,250.01,12.9504]
[1737665763000,28.1575,250.39,250.01,12.9504]
[1737665763197,30.0,250.33,250.01,12.9504]
[1737665763518,23.776884,250.35,250.01,13.9504]
[1737665763725,27.1575,250.39,250.01,13.9504]
[1737665764014,27.1575,250.39,250.06,1.0]
[1737665764188,43.1325,250.39,250.01,14.9504]
[1737665764392,15.9743,250.41,250.08,1.0]
[1737665764701,15.9743,250.41,250.02,1.0]
[1737665764885,15.9743,250.41,250.01,13.9504]
[1737665765314,23.776884,250.4,250.03,1.0]
[1737665765617,23.776884,250.4,250.01,13.9504]
[1737665765815,23.776884,250.4,250.01,12.9504]
[1737665765993,45.9743,250.41,250.01,12.9504]
[1737665766190,45.9743,250.41,250.02,1.0]
[1737665766497,3.31068162,250.4,250.01,12.9504]
[1737665766808,23.776884,250.36,250.01,12.9504]
[1737665767014,23.776884,250.36,250.02,23.776884]
[1737665767192,30.0,250.38,250.01,12.9504]
[1737665767393,33.31068162,250.38,250.01,12.9504]
[1737665767596,53.776884,250.31,250.01,12.9504]
[1737665768011,3.31068162,250.37,250.01,12.9504]
[1737665768012,30.0,250.36,250.01,12.9504]
[1737665768211,3.31068162,250.37,250.01,12.9504]
[1737665768417,30.0,250.27,250.01,12.9504]
[1737665768597,23.776884,250.23,250.01,12.9504]
[1737665769025,23.776884,250.22,250.01,12.9504]
[1737665769194,23.776884,250.19,249.96,0.2]
[1737665769815,33.31068162,250.18,249.96,0.2]
[1737665770214,23.776884,250.14,249.96,0.2]
[1737665770514,23.776884,250.14,249.75,0.063]
[1737665770515,30.0,250.02,249.75,0.063]
[1737665770719,3.37499777,250.01,249.75,0.063]
[1737665770894,3.53457051,250.01,249.75,0.063]
[1737665771690,28.59339539,250.01,249.75,0.063]
[1737665771889,2.31694578,250.0,249.75,0.063]
[1737665772095,53.776884,249.98,249.75,0.063]
[1737665772308,3.88060514,249.97,249.75,0.063]
[1737665772519,11.2017,249.96,249.75,0.063]
[1737665772896,7.9978,250.07,249.76,16.2621]
[1737665773110,3.1984,250.12,249.76,16.2621]
[1737665773444,3.53457051,250.07,249.76,16.2621]
[1737665773730,23.776884,250.02,249.76,16.2621]
[1737665773930,3.53457051,250.07,249.78,30.01102595]
[1737665774139,3.53457051,250.02,249.76,16.2621]
[1737665774343,53.776884,250.01,249.76,13.1022]
[1737665774517,30.0,249.98,249.76,13.1022]
[1737665774717,3.53457051,249.97,249.76,13.1022]
[1737665775435,23.776884,249.96,249.76,13.1022]
[1737665775735,3.53457051,249.95,249.76,13.1022]
[1737665775935,27.2,250.0,249.76,13.1022]
[1737665776143,11.2,250.0,249.76,13.1022]
[1737665776333,3.2,250.0,249.77,23.776884]
[1737665776535,3.1997,250.02,249.8,30.01102595]
[1737665776837,3.53457051,250.1,249.84,30.01102595]
[1737665777044,11.1959,250.09,249.84,30.01102595]
[1737665777338,11.1959,250.09,249.86,30.01102595]
[1737665777631,3.1988,250.09,249.89,23.776884]
[1737665778139,3.1988,250.09,249.88,3.1599]
[1737665778355,11.1959,250.09,249.88,3.1599]
[1737665778527,3.1984,250.12,249.88,3.1599]
[1737665778936,30.0,250.11,249.76,13.1022]
[1737665779133,37.13345717,250.11,249.76,13.1022]
[1737665779340,7.13345717,250.11,249.76,13.1022]
[1737665779550,30.0,250.1,249.76,13.1022]
[1737665779724,3.53457051,250.09,249.76,13.1022]
[1737665779925,30.0,250.07,249.76,13.1022]
[1737665780122,3.53457051,250.06,249.76,43.11322595]
[1737665780322,3.53457051,250.06,249.79,23.776884]
[1737665780540,11.1977,250.05,249.79,23.776884]
[1737665780741,46.74674351,250.05,249.76,13.1022]
[1737665780952,27.31145451,250.04,249.76,13.1022]
[1737665781134,16.5133,250.02,249.64,30.01102595]
[1737665781446,3.53457051,250.01,249.7,30.01102595]
[1737665781645,3.53457051,250.01,249.75,23.776884]
[1737665781865,98.0131783,250.04,249.67,1.0]
[1737665782052,98.0131783,250.04,249.58,30.01102595]
[1737665782240,1.0,250.02,249.58,30.01102595]
[1737665782432,20.56398966,249.96,249.58,30.01102595]
[1737665782636,20.43266488,249.94,249.6,30.01102595]
[1737665782834,20.29936471,249.92,249.6,30.01102595]
[1737665783047,3.74907051,249.91,249.6,30.01102595]
[1737665783237,3.74907051,249.91,249.56,31.01102595]
[1737665783547,56.2871,249.9,249.57,1.0]
[1737665783722,4.95129273,249.89,249.56,23.776884]
[1737665783920,23.776884,249.8,249.51,0.063]
[1737665784139,1.0,249.76,249.51,0.063]
[1737665784336,3.95129273,249.75,249.51,0.063]
[1737665784523,11.212,249.73,249.51,0.063]
[1737665784859,7.96798494,249.72,249.51,0.063]
[1737665785156,23.776884,249.71,249.51,0.063]
[1737665785358,23.776884,249.68,249.51,0.063]
[1737665785654,53.776884,249.66,249.51,0.063]
[1737665785867,3.95129273,249.65,249.51,0.063]
[1737665786039,7.96798494,249.65,249.28,31.01102595]
[1737665786359,16.24489273,249.65,249.27,30.01102595]
[1737665786666,8.0121,249.62,249.26,1.0]
[1737665786958,3.95129273,249.61,249.29,30.01102595]
[1737665787265,3.95129273,249.61,249.36,1.0]
[1737665787470,3.95129273,249.61,249.24,30.01102595]
[1737665787471,3.2046,249.64,249.33,30.01102595]
[1737665787630,7.15589273,249.64,249.34,1.0]
[1737665787831,3.95129273,249.63,249.34,1.0]
[1737665788032,3.95129273,249.63,249.38,23.776884]
[1737665788257,3.95129273,249.63,249.33,30.01102595]
[1737665788765,23.776884,249.61,249.29,1.0]
[1737665788964,3.95129273,249.6,249.29,1.0]
[1737665789136,3.95129273,249.6,249.27,1.0]
[1737665789464,3.95129273,249.6,249.22,23.776884]
[1737665789633,23.776884,249.59,249.2,12.8929]
[1737665789839,23.776884,249.57,249.2,12.8929]
[1737665790051,23.776884,249.55,249.18,1.0]
[1737665790228,3.95129273,249.54,249.16,1.0]
[1737665790434,3.95129273,249.54,249.2,1.0]
[1737665790660,23.776884,249.53,249.2,1.0]
[1737665790837,23.776884,249.51,249.17,1.0]
[1737665791164,27.72817673,249.51,249.12,1.0]
[1737665791369,3.95129273,249.5,249.07,1.0]
[1737665791665,23.776884,249.46,249.13,1.0]
[1737665791834,23.776884,249.46,248.95,1.0]
[1737665791835,53.776884,249.44,248.95,1.0]
[1737665792036,30.0,249.37,248.97,1.0]
[1737665792261,3.95129273,249.36,248.93,12.8327]
[1737665792563,30.0,249.33,248.93,12.8327]
[1737665792864,3.41553344,249.39,248.99,1.0]
[1737665792865,3.95129273,249.32,248.99,1.0]
[1737665793034,3.2083,249.35,249.01,1.0]
[1737665793235,3.2083,249.35,249.05,1.0]
[1737665793436,7.15919273,249.38,249.11,1.0]
[1737665793662,3.2079,249.38,249.11,1.0]
[1737665793857,3.2079,249.38,249.09,1.0]
[1737665794052,3.2079,249.38,249.08,1.0]
[1737665794233,11.2277,249.38,249.02,1.0]
[1737665794437,3.95129273,249.37,249.1,1.0]
[1737665794658,3.2073,249.43,249.15,1.0]
[1737665794859,16.0364,249.36,249.13,24.776884]
[1737665795142,16.0364,249.36,249.11,1.0]
[1737665795366,16.0364,249.36,249.15,1.0]
[1737665795564,16.0364,249.36,249.17,1.0]
[1737665795840,16.0364,249.36,249.15,1.0]
[1737665796053,12.6741,249.52,249.24,1.0]
[1737665796255,15.8803,249.52,249.15,1.0]
[1737665796456,15.8803,249.52,249.13,1.0]
[1737665796457,3.95129273,249.51,249.13,1.0]
[1737665796645,3.982,249.5,249.07,3.0073]
[1737665796949,19.15609273,249.49,249.15,1.0]
[1737665797158,15.17409273,249.49,249.17,1.0]
[1737665797362,15.17409273,249.49,249.14,1.0]
[1737665797553,7.15779273,249.49,249.16,1.0]
[1737665797854,3.2065,249.49,249.16,1.0]
[1737665798553,23.776884,249.47,249.11,3.8232]
[1737665798744,23.776884,249.45,249.11,2.8232]
[1737665798942,7.15819273,249.46,249.17,23.776884]
[1737665799163,3.2064,249.5,249.21,1.0]
[1737665799366,3.2064,249.5,249.18,1.0]
[1737665799537,3.2064,249.5,249.11,2.8232]
[1737665799742,27.72817673,249.49,249.11,2.8232]
[1737665800455,7.96798494,249.49,249.13,1.0]
[1737665800660,3.95129273,249.49,249.17,23.776884]
[1737665800972,3.95129273,249.49,249.09,1.0]
[1737665800973,3.2066,249.48,249.19,1.0]
[1737665801149,3.2066,249.48,249.22,23.776884]
[1737665801564,3.2066,249.48,249.16,12.0193]
[1737665801890,27.72817673,249.47,249.16,12.0193]
[1737665802045,27.72817673,249.47,249.17,23.776884]
[1737665802251,27.72817673,249.47,249.16,12.0193]
[1737665802562,30.0,249.45,249.17,0.733865]
[1737665802767,23.776884,249.39,249.17,0.733865]
[1737665803272,3.2076,249.4,249.17,0.733865]
[1737665803474,23.776884,249.39,249.17,0.733865]
[1737665803645,23.776884,249.37,248.99,2.8232]
[1737665803845,23.776884,249.35,249.0,0.73436603]
[1737665804051,16.12789273,249.34,249.0,0.73436603]
[1737665804474,16.12789273,249.34,249.0,1.73436603]
[1737665804671,23.776884,249.33,249.0,0.73436603]
[1737665804846,12.1766,249.34,249.04,23.776884]
[1737665805049,0.2448,249.37,249.11,23.776884]
[1737665805344,0.2448,249.37,249.14,1.0]
[1737665805559,0.2448,249.37,249.08,1.0]
[1737665805741,0.2448,249.37,249.0,37.76236603]
[1737665805742,0.2448,249.37,249.17,1.0]
[1737665805947,0.2448,249.37,249.18,23.776884]
[1737665806165,0.2448,249.37,249.12,32.8232]
[1737665806166,0.2448,249.37,249.14,1.0]
[1737665806369,0.2448,249.37,249.16,1.0]
[1737665806574,0.2448,249.37,249.12,2.8232]
[1737665806872,0.2448,249.37,249.14,1.0]
[1737665807071,0.2448,249.37,249.2,1.0]
[1737665807288,11.4573,249.62,249.29,1.0]
[1737665807452,3.2049,249.61,249.3,23.776884]
[1737665807651,3.2049,249.61,249.21,30.0]
[1737665807652,15.8803,249.57,249.21,1.0]
[1737665807856,19.83159273,249.57,249.21,1.0]
[1737665808271,19.83159273,249.57,249.18,12.1405]
[1737665808272,3.95129273,249.56,249.18,12.1405]
[1737665808472,7.61429531,249.56,249.18,12.1405]
[1737665808667,23.776884,249.55,249.18,12.1405]
[1737665808984,18.12633467,249.54,249.14,1.54558921]
[1737665809287,14.10964246,249.54,249.19,1.0]
[1737665809577,15.8803,249.57,249.27,23.776884]
[1737665809761,15.8803,249.57,249.29,23.776884]
[1737665809952,3.205,249.61,249.29,23.776884]
[1737665810155,0.03,249.56,249.36,1.0]
[1737665810357,0.03,249.56,249.38,1.0]
[1737665810673,0.03,249.56,249.34,1.0]
[1737665810869,0.03,249.56,249.31,3.5785]
[1737665810870,0.03,249.56,249.33,1.0]
[1737665811066,0.03,249.56,249.39,2.0]
[1737665811251,0.03,249.56,249.43,1.0]
[1737665811448,0.03,249.56,249.4,2.0]
[1737665811682,0.03,249.56,249.48,23.776884]
[1737665811980,0.03,249.56,249.48,1.0]
[1737665812177,0.03,249.76,249.6,1.0]
[1737665812356,0.72497628,249.75,249.61,23.776884]
[1737665812558,0.72497628,249.75,249.52,12.453]
[1737665812559,0.72497628,249.75,249.63,1.0]
[1737665812753,0.72497628,249.75,249.52,12.453]
[1737665812962,3.2033,249.74,249.48,1.5773363]
[1737665813170,0.72497628,249.73,249.51,1.0]
[1737665813491,0.72497628,249.73,249.52,23.776884]
[1737665813658,0.03,249.76,249.52,0.73283561]
[1737665813859,0.03,249.76,249.56,1.0]
[1737665814185,0.03,249.76,249.52,0.73283561]
[1737665814384,0.03,249.76,249.53,23.776884]
[1737665814549,0.03,249.76,249.58,23.776884]
[1737665814955,0.03,249.76,249.6,23.776884]
[1737665815362,0.03,249.76,249.58,23.776884]
[1737665815577,0.03,249.76,249.57,1.0]
[1737665815877,0.03,249.76,249.6,0.73260073]
[1737665816286,0.03,249.76,249.62,1.0]
[1737665816450,0.03,249.76,249.63,1.0]
[1737665816875,8.001,249.97,249.67,1.0]
[1737665817077,13.0315,249.96,249.75,1.0]
[1737665817283,6.3441,250.04,249.78,1.0]
[1737665817483,3.1446,250.04,249.78,1.0]
[1737665817686,3.1446,250.04,249.75,1.0]
[1737665817687,3.1446,250.04,249.86,23.776884]
[1737665817862,0.03,250.01,249.79,0.73204348]
[1737665818285,0.03,250.01,249.8,23.776884]
[1737665818455,0.03,250.01,249.9,23.776884]
[1737665818656,0.03,250.09,249.94,23.776884]
[1737665818857,0.03,250.09,249.9,23.776884]